[Event "Czech Open-GM 2022"]
[Site "Pardubice"]
[Date "2022.07.22"]
[Round "1.26"]
[White "Jun, Rudolf"]
[Black "Keller, Peter"]
[Result "0-1"]
[ECO "C67"]
[WhiteElo "2134"]
[BlackElo "2377"]
[Annotator "TA"]
[PlyCount "110"]
[EventDate "2022.07.22"]
[EventType "swiss"]
[EventCountry "CZE"]
[SourceTitle "playchess.com"]
[Source "ChessBase"]
[SourceQuality "1"]
[TimeControl "40/5400+30:1800+30"]

{[%evp 11,110,12,14,0,-19,-8,-8,-8,0,-5,-10,-8,-5,-28,0,0,0,0,0,0,-2,0,0,0,0,0,0,0,0,0,0,-3,-3,-3,0,-7,0,0,0,0,-8,-10,0,-27,-41,-27,-25,-24,-22,-24,-17,-25,-32,-43,-42,-49,-40,-53,-42,-37,-67,-126,-19,-80,-68,-78,-53,-53,-53,-53,-51,-52,-56,-79,-73,-127,-119,-119,-119,-637,-543,-841,-872,-691,-546,-541,-132,-493,-471,-462,-302,-247,-139,-1607,-1710,-2542,-4133,-1925,-1847,-2031,-1805]} 1. e4 {[%emt 0:00:03]} e5 {[%emt 0:00:22]} 2. Nf3 {[%emt 0:00:30]} Nc6 {[%emt 0:00:05]} 3. Bb5 {[%emt 0:00:34]} Nf6 {[%emt 0:02:22][%cal Bg8f6,Bf6e4,Be4d6,Bd6e8,Be8g7,Bg7f5][%mdl 32]} 4. O-O {[%emt 0:01:25]} Nxe4 {[%emt 0:00:16]} 5. Re1 {[%emt 0:03:11]} Nd6 {[%emt 0:00:07]} 6. Nxe5 {[%emt 0:01:19]} Be7 {[%emt 0:00:20]} 7. Bd3 {[%emt 0:01:58] C67: Ruy Lopez: Berlin Defence: 4 0-0 Nxe4.} Nxe5 $1 {[%emt 0:07:19] 7...Nxe5 is better than 7...0-0.} 8. Rxe5 {[%emt 0:00:09]} O-O {[%emt 0:00:13]} 9. c3 {[%emt 0:03:53] The position is equal.} Ne8 {[%emt 0:17:23]} 10. Bc2 {[%emt 0:04:22]} ({Reject} 10. Qh5 Nf6 11. Qf3 d5 $15) 10... d5 {[%emt 0:02:04]} 11. d4 {[%emt 0:01:49]} Bd6 {[%emt 0:02:55]} 12. Re1 {[%emt 0:01:57] [#]} ({Avoid the trap} 12. Bxh7+ $2 Kxh7 13. Rh5+ Kg8 $19) 12... g6 $146 {[%emt 0:18:31]} (12... Qh4 {seems wilder.} 13. g3 Qh3 14. Nd2 Nf6) ({Predecessor:} 12... Qh4 13. g3 Qh3 14. Qf3 Bg4 15. Qg2 Qh5 16. Nd2 Nf6 17. f3 Bh3 18. Qf2 Rae8 19. Rxe8 Rxe8 {1-0 (42) Baklan,V (2620)-Sethuraman,S (2529) Vrachati 2011}) 13. Nd2 {[%emt 0:02:01][%cal Bb1d2,Bd2f3,Bf3e5,Be5d3,Bd3f4][%mdl 32]} Ng7 {[%emt 0:00:20]} 14. Nf3 {[%emt 0:02:06]} Bf5 {[%emt 0:02:10]} 15. Bxf5 {[%emt 0:01:18]} Nxf5 {[%emt 0:00:06]} 16. Ne5 {[%emt 0:00:57]} c6 {[%emt 0:06:24]} 17. Qf3 {[%emt 0:04:40]} f6 {[%emt 0:14:31]} 18. Nd3 {[%emt 0:04:02]} Qd7 {[%emt 0:02:44]} 19. Bf4 {[%emt 0:02:20]} Rae8 {[%emt 0:02:36]} 20. Bxd6 {[%emt 0:02:14]} Qxd6 {[%emt 0:00:18]} 21. Qf4 {[%emt 0:00:34]} Qxf4 {[%emt 0:02:03]} 22. Nxf4 {[%emt 0:00:07]} Kf7 {[%emt 0:00:16]} 23. Nd3 {[%emt 0:01:27]} h5 {[%emt 0:02:04]} 24. f3 {[%emt 0:02:17]} g5 {[%emt 0:03:55]} 25. Kf2 {[%emt 0:00:44]} a5 {[%emt 0:03:21]} 26. a4 {[%emt 0:01:40]} b6 {[%emt 0:02:22]} 27. b4 {[%emt 0:05:25]} Rxe1 {[%emt 0:00:21]} 28. Rxe1 {[%emt 0:00:14]} axb4 {[%emt 0:01:34]} 29. Nxb4 $11 {[%emt 0:00:09][%mdl 4096] Endgame KRN-KRN} Ne7 {[%emt 0:00:15]} 30. Ra1 {[%emt 0:05:49]} Ra8 {[%emt 0:00:09]} 31. Ke3 {[%emt 0:01:37]} Ke6 {[%emt 0:00:06]} 32. Kd2 {[%emt 0:00:16]} Kd7 {[%emt 0:03:00]} 33. Nc2 $1 {[%emt 0:02:34]} Nf5 {[%emt 0:00:38]} 34. Ne3 {[%emt 0:01:40]} Nxe3 {[%emt 0:00:48]} 35. Kxe3 $15 {[%emt 0:00:08] KR-KR} Ra5 {[%emt 0:00:05]} 36. Rb1 {[%emt 0:09:48]} (36. h4 $15) 36... Kc7 {[%emt 0:00:47]} (36... Rxa4 $17 {White must now prevent ...b5.} 37. Rxb6 Ra3) 37. Rb4 {[%emt 0:02:30]} (37. h4 $1 $11) 37... c5 {[%emt 0:01:53]} 38. Rb5 {[%emt 0:01:04] Rxa5 is the strong threat.} Rxa4 {[%emt 0:01:28]} 39. dxc5 {[%emt 0:00:36]} bxc5 {[%emt 0:00:12]} 40. Rxc5+ {[%emt 0:01:05]} Kd6 {[%emt 0:00:02]} 41. Rc8 {[%emt 0:31:19]} Ra2 {[%emt 0:30:23]} 42. Rd8+ {[%emt 0:03:16]} Ke6 $1 {[%emt 0:02:10]} 43. Re8+ {[%emt 0:00:45]} (43. Rh8 $142) 43... Kd7 $17 {[%emt 0:00:28]} 44. Rh8 {[%emt 0:00:43] [#]} h4 $1 {[%emt 0:00:19]} ({Much worse is} 44... Rxg2 $6 45. Rxh5 Ke8 46. f4 $11) 45. f4 $2 {[%emt 0:01:17][%mdl 8192]} (45. g3 $17) 45... Rxg2 $19 {[%emt 0:01:25]} 46. fxg5 {[%emt 0:00:11]} fxg5 {[%emt 0:00:09]} 47. Rh5 {[%emt 0:00:58]} Ke6 {[%emt 0:00:00]} 48. Kf3 {[%emt 0:00:00]} Rg1 {[%emt 0:00:00]} (48... Rxh2 $19 49. Rxg5 h3) 49. Kf2 $2 {[%emt 0:00:00][%mdl 8192]} (49. Rh8 $17 {was the crucial defense.}) 49... Rg4 {[%emt 0:00:00]} 50. Kf3 {[%emt 0:00:00] [#]} Kf5 {[%emt 0:00:00] And now ...Rc4 would win.} 51. Rh8 {[%emt 0:00:00] Threatening mate with Rf8+.} Rf4+ {[%emt 0:00:00]} ({Black should play} 51... Rc4 $19 52. Rf8+ Ke6 53. Re8+ Kf6 54. Rf8+ Ke6 55. Re8+ Kf6 56. Rf8+ Kg6 57. Rg8+ Kf6 58. Rf8+) 52. Ke3 $2 {[%emt 0:00:00][%mdl 8192] Now White is beyond hope.} (52. Kg2 $17) 52... Kg4 {[%emt 0:00:00] Strongly threatening ...Rf5. Black is clearly winning.} 53. Rg8 {[%emt 0:00:00]} Rf5 {[%emt 0:00:00]} 54. Ra8 {[%emt 0:00:00]} Kh3 {[%emt 0:00:00]} 55. Ra2 {[%emt 0:00:00]} g4 {[%emt 0:00:00] Weighted Error Value: White=0.65/Black=0.22 (precise)} 0-1

[Event "Czech Open-GM 2022"]
[Site "Pardubice"]
[Date "2022.07.22"]
[Round "1.27"]
[White "Sorensen, Hampus"]
[Black "Hlavina, Matous"]
[Result "1-0"]
[ECO "C12"]
[WhiteElo "2376"]
[BlackElo "2133"]
[Annotator "TA"]
[PlyCount "107"]
[EventDate "2022.07.22"]
[EventType "swiss"]
[EventCountry "CZE"]
[SourceTitle "playchess.com"]
[Source "ChessBase"]
[SourceQuality "1"]
[TimeControl "40/5400+30:1800+30"]

{[%evp 18,107,0,0,37,-11,19,0,53,0,0,17,26,0,0,-8,0,0,20,18,23,21,29,21,28,31,37,21,35,21,31,0,6,6,110,80,69,77,72,41,56,41,41,44,92,5,5,0,35,32,44,0,8,0,0,0,0,0,98,103,102,0,0,0,100,84,216,215,289,252,467,367,493,485,1075,1019,2113,2664,29972,5164,1468,639,690,608,5667,498,5612,5604,4906,2733,5018,4922]} 1. e4 {[%emt 0:00:08]} e6 {[%emt 0:00:27]} 2. d4 {[%emt 0:00:27]} d5 {[%emt 0:00:33]} 3. Nc3 {[%emt 0:00:25]} Nf6 {[%emt 0:00:43]} 4. Bg5 {[%emt 0:00:50]} Bb4 {[%emt 0:00:09]} 5. e5 {[%emt 0:02:24]} h6 {[%emt 0:00:07]} 6. Bd2 {[%emt 0:00:14]} Bxc3 {[%emt 0:00:09]} 7. bxc3 {[%emt 0:00:24]} Ne4 {[%emt 0:00:07]} 8. Qg4 {[%emt 0:03:26]} g6 {[%emt 0:01:53]} 9. h4 {[%emt 0:01:48]} Nxd2 {[%emt 0:09:19]} 10. Kxd2 {[%emt 0:00:10]} c5 {[%emt 0:01:05] C12: French: Classical System: McCutcheon Variation.} 11. Nf3 {[%emt 0:10:22]} (11. h5 $14 g5 12. dxc5) 11... Nc6 {[%emt 0:01:17]} 12. Qf4 {[%emt 0:03:08]} Qe7 {[%emt 0:05:10] [#]} (12... Bd7 $11) 13. Rb1 $146 {[%emt 0:05:57]} ({Better is} 13. Bb5 $14) ({Predecessor:} 13. Qf6 Qxf6 14. exf6 c4 15. g4 Nb8 16. Bg2 Nd7 17. g5 h5 18. Rhb1 b6 19. a4 Bb7 20. Ke3 Kd8 21. Kf4 {½-½ (21) Fletcher,J (2027)-Tew,P (2056) Treforest 2009}) 13... b6 {[%emt 0:05:05]} 14. Bb5 {[%emt 0:10:06]} Bd7 {[%emt 0:01:12]} 15. Bxc6 {[%emt 0:01:23]} Bxc6 {[%emt 0:00:27]} 16. Rh3 {[%emt 0:02:37]} Kd7 {[%emt 0:04:19]} 17. Ne1 {[%emt 0:13:15][%cal Bf3e1,Be1d3,Bd3c5][%mdl 32]} Rag8 {[%emt 0:06:44]} 18. dxc5 {[%emt 0:05:39]} g5 {[%emt 0:16:21]} 19. hxg5 {[%emt 0:00:22]} hxg5 {[%emt 0:01:12]} 20. Qg3 {[%emt 0:06:54] And now Rxh8 would win.} Rxh3 {[%emt 0:03:33]} 21. gxh3 {[%emt 0:00:16]} bxc5 {[%emt 0:02:04]} 22. Nd3 {[%emt 0:00:24] Strongly threatening Qe3.} Kc8 {[%emt 0:08:47]} 23. Qe3 {[%emt 0:04:36]} Rd8 $1 {[%emt 0:04:10]} 24. Qxc5 {[%emt 0:08:09]} Qxc5 {[%emt 0:00:55]} 25. Nxc5 $14 {[%emt 0:00:02][%mdl 4096] Endgame KRB-KRN} d4 {[%emt 0:01:37]} (25... Rh8 $11) 26. Rg1 {[%emt 0:08:09]} dxc3+ {[%emt 0:00:55]} 27. Kxc3 {[%emt 0:00:02]} Rh8 {[%emt 0:00:39]} 28. Rg3 {[%emt 0:01:36]} Bd5 {[%emt 0:00:37]} 29. a3 {[%emt 0:00:18]} Kc7 {[%emt 0:01:16]} 30. Nd3 Kc6 {[%emt 0:01:36]} (30... Be4 $14 {is more appropriate.}) 31. f4 {[%emt 0:04:31]} ({White should try} 31. Rxg5 $16 {Threatens to win with Rg7.} Rxh3 32. Kd4) 31... gxf4 $11 {[%emt 0:02:26]} 32. Nxf4 {[%emt 0:00:02]} Be4 {[%emt 0:01:07]} (32... Rh4 $5 {[%cal Rh4f4]} 33. Nxd5 Kxd5 $11) 33. Kd4 {[%emt 0:04:07]} Bg6 {[%emt 0:03:06]} 34. c4 {[%emt 0:01:54]} a5 {[%emt 0:00:49]} 35. Rb3 {[%emt 0:01:16]} Bf5 {[%emt 0:01:49]} 36. Rb5 {[%emt 0:00:53]} Bxh3 {[%emt 0:04:14]} 37. Rxa5 {[%emt 0:01:02]} Kb6 {[%emt 0:00:54]} (37... Rh4 $11 {remains equal.} 38. Ke3 Bf5) 38. Rb5+ $16 {[%emt 0:00:04]} Kc6 {[%emt 0:00:04] [#]} 39. Ra5 {[%emt 0:00:16]} (39. Kc3 $1 $16) 39... Kb6 $11 {[%emt 0:00:46]} 40. Rb5+ {[%emt 0:00:26]} (40. Ra4 $11) 40... Kc6 $16 {[%emt 0:00:05] [#]} 41. Kc3 $1 {[%emt 0:07:14]} Bf5 {[%emt 0:01:36] Loses the game.} (41... Bg4 $16) 42. Ne2 $18 {[%emt 0:03:29]} Rh3+ {[%emt 0:01:16]} 43. Kb4 {[%emt 0:00:05]} Rh4 $2 {[%emt 0:00:23]} (43... Be4 44. Nc3 Bf3) 44. a4 {[%emt 0:02:39]} Bd3 {[%emt 0:00:55]} 45. Rc5+ {[%emt 0:00:05]} Kb7 {[%emt 0:01:07]} (45... Kd7 $142 46. Nc3 Rh1) 46. Nc3 {[%emt 0:00:13]} Rf4 {[%emt 0:01:08]} 47. Nb5 {[%emt 0:03:09] Intending Nd6+ and mate.} f6 {[%emt 0:00:37]} 48. exf6 {[%emt 0:00:36]} Rxf6 {[%emt 0:00:14] White is clearly winning.} 49. Rc7+ {[%emt 0:00:31]} (49. Nd6+ $142 Ka7 50. Rc7+ Kb8 51. Rc8+ Ka7 52. Ka5 Bxc4 53. Rc7+ Kb8 54. Kb6) 49... Kb8 {[%emt 0:00:14]} 50. Rd7 {[%emt 0:02:10]} Be4 {[%emt 0:01:17]} 51. Rd8+ {[%emt 0:02:33]} Kb7 {[%emt 0:00:56]} 52. Nd6+ {[%emt 0:00:24]} Kc7 {[%emt 0:00:05]} 53. Nxe4 {[%emt 0:00:07]} Rf4 {[%emt 0:00:34] [#]} 54. Nc5 $1 {[%emt 0:00:12] Weighted Error Value: White=0.31/Black=0.52} 1-0

[Event "Czech Open-GM 2022"]
[Site "Pardubice"]
[Date "2022.07.22"]
[Round "1.28"]
[White "Bodicky, Michal"]
[Black "Luch, Michal"]
[Result "0-1"]
[ECO "E10"]
[WhiteElo "2132"]
[BlackElo "2375"]
[Annotator "TA"]
[PlyCount "75"]
[EventDate "2022.07.22"]
[EventType "swiss"]
[EventCountry "CZE"]
[SourceTitle "playchess.com"]
[Source "ChessBase"]
[SourceQuality "1"]
[TimeControl "40/5400+30:1800+30"]

{[%evp 23,75,-42,-52,-72,-75,-135,-110,-132,-102,-101,-89,-100,-88,-125,-112,-106,-108,-132,-134,-157,-154,-149,-145,-168,-127,-109,-109,-110,-117,-127,-123,-114,-114,-111,-127,-173,-172,-189,-189,-282,-282,-345,-344,-344,-345,-398,-293,-386,-365,-370,-362,-379,-329,-361]} 1. d4 {[%emt 0:00:04]} Nf6 {[%emt 0:00:06]} 2. c4 {[%emt 0:00:05]} e6 {[%emt 0:00:03]} 3. Nf3 {[%emt 0:00:38]} d5 {[%emt 0:00:06]} 4. g3 {[%emt 0:00:15]} dxc4 {[%emt 0:00:06]} 5. Qa4+ {[%emt 0:01:00]} Nbd7 {[%emt 0:00:06]} 6. Bg2 {[%emt 0:00:28]} a6 {[%emt 0:00:08]} 7. Qxc4 {[%emt 0:00:45]} b5 {[%emt 0:00:04]} 8. Qc2 {[%emt 0:06:59]} Bb7 {[%emt 0:00:05]} 9. O-O {[%emt 0:00:15]} c5 {[%emt 0:00:05]} 10. Nc3 {[%emt 0:12:48]} Rc8 {[%emt 0:01:03]} 11. dxc5 {[%emt 0:04:01]} Bxc5 {[%emt 0:00:14]} 12. a3 {[%emt 0:01:44]} O-O {[%emt 0:28:26] 12...Qb6 is vanishing.} 13. e3 {[%emt 0:12:19] [#] E03: Open Catalan: 5 Qa4+ Nbd7 6 Qxc4.} Rc7 $146 {[%emt 0:03:13]} ({Predecessor:} 13... Nb6 14. Qe2 Ne4 15. Nxe4 Bxe4 16. Rd1 Qf6 17. Nd4 Bxg2 18. Kxg2 Bxd4 19. exd4 Qf5 20. Rd3 Rc4 {1-0 (73) Balog,I (2221)-Meszaros,T (2392) Hungary 2006}) 14. Nd4 {[%emt 0:12:29]} (14. e4 $142) 14... Bxg2 $17 {[%emt 0:12:01]} 15. Kxg2 {[%emt 0:00:13] Black is better.} Bxd4 {[%emt 0:00:27]} 16. exd4 {[%emt 0:04:11]} Nd5 {[%emt 0:00:59]} 17. Bd2 {[%emt 0:06:02]} N7b6 {[%emt 0:17:35][%cal Ob6a4] Pair of Knights!} 18. Rad1 {[%emt 0:03:36]} Nxc3 {[%emt 0:00:15]} 19. Bxc3 {[%emt 0:00:35]} Qd5+ {[%emt 0:02:06]} 20. f3 {[%emt 0:02:58]} Na4 {[%emt 0:03:57]} 21. Rfe1 {[%emt 0:00:33]} Rfc8 {[%emt 0:02:48][%cal Oa4b2]} 22. Rd3 {[%emt 0:09:30]} Qa2 {[%emt 0:10:54]} 23. Ree3 {[%cal Od4d5] [#]} Qxb2 $3 {[%emt 0:00:01][%mdl 512]} 24. Qxb2 {[%emt 0:01:01]} Nxb2 {[%emt 0:00:02]} 25. Bxb2 {[%emt 0:00:05] Hoping for Kh3.} Rc2+ {[%emt 0:00:03]} 26. Kh3 {aiming for Bc3.} Rxb2 {[%mdl 4096] Endgame KRR-KRR} 27. d5 {[%emt 0:00:51]} exd5 {[%emt 0:01:02] Black is more active.} 28. Rxd5 {[%emt 0:00:29][%cal Od5c5]} g6 {[%emt 0:00:04][%cal Bg7g6,Bg6g5][%mdl 32]} 29. Rd7 {[%emt 0:01:06]} (29. Rd6 $17 {keeps fighting.}) 29... Rc6 $19 {[%emt 0:01:16]} 30. g4 {[%emt 0:01:41] [#]} g5 $1 {[%emt 0:03:50] ( -> ...Rh6+)} 31. Rd5 {[%emt 0:04:56]} (31. Re5 $142 h6 32. Re8+ Kg7 33. Ree7) 31... h6 {[%emt 0:00:13] Threatens to win with ...Rcc2.} 32. Re1 {[%emt 0:00:47]} Rcc2 {[%emt 0:03:55]} 33. Rh1 {[%emt 0:00:02]} Kg7 {[%emt 0:03:01]} 34. Kg3 {[%emt 0:01:18]} Rg2+ 35. Kh3 Rgd2 {[%emt 0:02:29]} 36. Rxd2 {[%emt 0:06:33]} Rxd2 {[%emt 0:00:02]} 37. Ra1 {[%emt 0:00:24]} Rd4 {[%emt 0:00:19]} 38. Kg3 {[%emt 0:01:43] Weighted Error Value: White=0.26 (precise) /Black=0.06 (flawless)} 0-1

[Event "Czech Open-GM 2022"]
[Site "Pardubice"]
[Date "2022.07.22"]
[Round "1.30"]
[White "Roessler, Ulrike"]
[Black "Stalmach, Richard"]
[Result "1/2-1/2"]
[ECO "B47"]
[WhiteElo "2129"]
[BlackElo "2363"]
[Annotator "TA"]
[PlyCount "114"]
[EventDate "2022.07.22"]
[EventType "swiss"]
[EventCountry "CZE"]
[SourceTitle "playchess.com"]
[Source "ChessBase"]
[SourceQuality "1"]
[TimeControl "40/5400+30:1800+30"]

{[%evp 15,114,27,18,0,1,0,0,-10,-2,-47,-16,-29,-27,-48,0,6,8,-24,-22,-45,-14,-66,-30,-66,-81,-107,-77,-94,-37,-47,-44,-116,-81,-80,-78,-82,0,0,0,0,111,121,147,169,142,152,400,395,373,382,425,264,263,225,218,222,280,273,253,243,316,314,326,0,184,166,164,112,99,63,58,34,143,142,132,40,86,77,97,94,100,44,118,70,181,181,225,216,216,0,0,0,0,0,0,0,0,0,0,0,0]} 1. e4 {[%emt 0:00:03]} c5 {[%emt 0:00:09]} 2. Nf3 {[%emt 0:00:08][%cal Bg1f3,Bf3d4,Bd4b5][%mdl 32]} e6 {[%emt 0:00:13]} 3. d4 {[%emt 0:00:06]} cxd4 {[%emt 0:00:05]} 4. Nxd4 {[%emt 0:00:05]} Nc6 {[%emt 0:00:19]} 5. Nc3 {[%emt 0:00:22]} Qc7 {[%emt 0:00:11]} 6. Ndb5 {[%emt 0:00:38]} Qb8 {[%emt 0:00:22]} 7. Be3 {[%emt 0:00:13]} a6 {[%emt 0:00:19]} 8. Nd4 {[%emt 0:00:12]} Nf6 {[%emt 0:02:35]} 9. f4 {[%emt 0:01:17] B47: Sicilian: Taimanov: 5 Nc3 Qc7 6 f4, 6 g3 and 6 Be2.} Bb4 {[%emt 0:08:40]} 10. Qf3 {[%emt 0:12:28]} d5 {[%emt 0:15:51]} 11. Nxc6 {[%emt 0:04:32]} bxc6 {[%emt 0:01:22]} 12. exd5 {[%emt 0:00:41]} Nxd5 {[%emt 0:02:45]} 13. Bd2 {[%emt 0:00:39]} O-O {[%emt 0:03:52]} 14. Bd3 {[%emt 0:02:25]} Qb6 {[%emt 0:21:05] [#]} (14... Qa7 $15) 15. a3 $146 {[%emt 0:11:55]} ({Predecessor:} 15. Qe4 f5 16. Qe5 Rd8 17. O-O-O Bd6 18. Nxd5 exd5 19. Qc3 Be6 20. Rhe1 Re8 21. Rxe6 Rxe6 22. Bxf5 {½-½ (55) Leko,P (2460)-Titz,H (2345) Austria 1993}) 15... Bd6 {[%emt 0:01:43]} (15... Bxc3 $5 16. bxc3 Re8 $11) 16. Ne4 {[%emt 0:03:10]} Qxb2 {[%emt 0:03:43]} 17. O-O {[%emt 0:02:17]} Be7 {[%emt 0:00:35]} (17... Bxa3 18. Rxa3 $1 Qxa3 19. Nf6+ $1 Kh8 20. Nxh7 $14) 18. Nf2 {[%emt 0:10:32]} (18. Rab1 $11 Qd4+ 19. Nf2) 18... f5 {[%emt 0:14:55]} 19. Rab1 {[%emt 0:08:07]} Qxa3 {[%emt 0:01:35]} 20. Rb3 {[%emt 0:01:52]} Qa4 {[%emt 0:01:52]} (20... Qc5 $6 21. c4 $15) 21. Rfb1 {[%emt 0:00:34]} a5 {[%emt 0:01:23]} (21... Qd4 $17 {And now ...a5 would win.} 22. c4 Nf6) 22. c4 $15 {[%emt 0:03:20]} Nb4 {[%emt 0:00:14]} 23. Bf1 {[%emt 0:00:08]} (23. Be2 $1 $15) 23... Bd7 {[%emt 0:02:44]} 24. Ra3 {[%emt 0:15:08]} Qc2 {[%emt 0:00:20][%csl LRb1,LRd2]} 25. Rd1 {[%emt 0:00:04]} Bc5 {[%emt 0:06:09]} ({Black should play} 25... Rfd8 $17 {Hoping for ...Be8.} 26. Bxb4 axb4 27. Rxa8 Rxa8 28. Rxd7 Bc5) 26. Be3 $11 {[%emt 0:02:27]} Bxe3 {[%emt 0:02:34]} 27. Qxe3 {[%emt 0:00:06]} Rf7 {[%emt 0:03:37]} (27... Be8 $11 {keeps the balance.}) 28. Qc5 $16 {[%emt 0:06:29]} Be8 {[%emt 0:04:27]} 29. Rxa5 {[%emt 0:00:40]} Rxa5 {[%emt 0:00:34]} 30. Qxa5 $40 {[%emt 0:00:04][%mdl 128] White attacks with force.} Qc3 {[%emt 0:00:30]} (30... c5 $16 {might work better.} 31. Rd8 (31. Qxc5 Nd5 $16) 31... Rf8) 31. Rd8 $18 {[%emt 0:07:06]} Re7 {[%emt 0:00:01][%cal Oc6c5]} 32. Nd3 {[%emt 0:02:16]} Nd5 {[%emt 0:01:12]} 33. Qc5 {[%emt 0:00:32][%cal Rd8d5] Black must now prevent Rxd5.} Kf7 {[%emt 0:00:33]} 34. cxd5 {[%emt 0:01:43]} Qxc5+ {[%emt 0:00:05]} 35. Nxc5 {[%emt 0:00:29] Strongly threatening d6.} exd5 {[%emt 0:00:02]} 36. Kf2 {[%emt 0:00:20]} Ra7 {[%emt 0:00:02]} 37. Ke3 {[%emt 0:01:19]} Ra5 {[%emt 0:01:38]} 38. Kd4 {[%emt 0:00:24]} Ra2 {[%emt 0:00:03]} 39. Ke3 $2 {[%emt 0:02:14] Prevents Rf2.} (39. Rc8 $18) 39... Rc2 $2 {[%emt 0:00:40]} (39... Ra5 $1 $11 {and Black stays safe.}) 40. Nd3 {[%emt 0:00:40]} Ke7 {[%emt 0:00:29]} 41. Rb8 {[%emt 0:30:05]} (41. Rc8 $18) 41... c5 $16 {[%emt 0:02:20]} 42. Rb7+ {[%emt 0:00:00]} Kd6 {[%emt 0:00:19]} 43. Ne5 {[%emt 0:00:00]} g5 {[%emt 0:08:00]} ({Black should try} 43... d4+ $14 44. Kf3 Bc6+ 45. Nxc6 Kxc6 46. Rxg7 c4) 44. Rb6+ {[%emt 0:00:00]} ({Don't do} 44. Rxh7 $6 gxf4+ 45. Kf3 c4 $14) 44... Kc7 {[%emt 0:01:04]} 45. Rb1 {[%emt 0:00:00]} (45. Re6 $16 gxf4+ 46. Kxf4 Rf2+ 47. Ke3 Rxf1 48. Rxe8) 45... d4+ {[%emt 0:01:57]} (45... g4 $14 {might be stronger.}) 46. Kd3 {[%emt 0:00:00]} Rc3+ {[%emt 0:06:42]} 47. Kd2 {[%emt 0:00:00]} gxf4 {[%emt 0:00:12]} 48. Bd3 {[%emt 0:00:00]} (48. Ra1 $16) 48... Kd6 {[%emt 0:03:28]} (48... Ra3 $14) 49. Re1 {[%emt 0:00:00] White is more active.} (49. Rb8 $16 Kxe5 50. Rxe8+ Kd6 51. Rf8 (51. Bxf5 Ra3 $14)) 49... Kd5 {[%emt 0:03:30] [#]} (49... Bc6 $14) 50. Nc4 $1 $18 {[%emt 0:00:00][%mdl 512]} Bg6 {[%emt 0:03:12]} (50... Bf7 51. Re7) 51. Re5+ {[%emt 0:00:00]} Kc6 {[%emt 0:00:01]} 52. h4 $2 {[%emt 0:00:00]} (52. Re6+ $18 Kd7 53. Ra6) 52... Bf7 $1 $11 {[%emt 0:00:07] The position is equal.} 53. Nb2 {[%emt 0:00:00]} c4 {[%emt 0:00:04]} 54. Rxf5 {[%emt 0:02:10]} cxd3 {[%emt 0:00:22]} 55. Rxf7 {[%emt 0:00:05]} Rc2+ {[%emt 0:00:05]} 56. Kxd3 {[%emt 0:00:04]} Rxb2 {[%emt 0:00:04]} 57. Rxf4 {[%emt 0:00:10]} Rxg2 {[%emt 0:00:26] Weighted Error Value: White=0.30/Black=0.38} 1/2-1/2

[Event "Czech Open-GM 2022"]
[Site "Pardubice"]
[Date "2022.07.22"]
[Round "1.31"]
[White "Svanda, Ondrej"]
[Black "Bares, Jachym"]
[Result "1-0"]
[ECO "A15"]
[WhiteElo "2363"]
[BlackElo "2129"]
[Annotator "TA"]
[PlyCount "29"]
[EventDate "2022.07.22"]
[EventType "swiss"]
[EventCountry "CZE"]
[SourceTitle "playchess.com"]
[Source "ChessBase"]
[SourceQuality "1"]
[TimeControl "40/5400+30:1800+30"]

{[%evp 12,29,0,0,33,30,24,8,21,-19,143,133,195,180,166,162,160,159,460,467]} 1. c4 {[%emt 0:00:08]} Nf6 {[%emt 0:00:15]} 2. g3 {[%emt 0:00:07]} g6 {[%emt 0:02:21]} 3. Bg2 {[%emt 0:00:06]} Bg7 {[%emt 0:00:18]} 4. Nc3 {[%emt 0:00:23]} c5 {[%emt 0:01:17]} 5. e4 {[%emt 0:00:12]} Nc6 {[%emt 0:00:51]} 6. Nge2 {[%emt 0:00:20]} d6 {[%emt 0:02:10]} 7. O-O {[%emt 0:00:40] 7.d3 is more advanced technology.} e5 {[%emt 0:03:33] A36: Symmetrical English vs ...g6: 4 Bg2 Bg7.} 8. d3 {[%emt 0:04:12]} Be6 {[%emt 0:14:07]} 9. f4 {[%emt 0:03:05]} Qd7 {[%emt 0:05:09] The position is equal.} 10. Nd5 {[%emt 0:06:32] [#]} Bxd5 $146 {[%emt 0:16:06] [#]} (10... Bg4 $11 11. Bf3 Bh3) ({Predecessor:} 10... Bg4 11. Bf3 Bh3 12. Bg2 Bxg2 13. Kxg2 h5 14. fxe5 Nxd5 15. cxd5 Nxe5 16. Nc3 h4 {0-1 (33) Pollard,M (1765)-Karia,R (1817) England 2015}) 11. exd5 {[%emt 0:11:37]} Ne7 {[%emt 0:05:05]} (11... Nd4 $16 12. fxe5 dxe5) 12. fxe5 $18 {[%emt 0:04:32]} dxe5 {[%emt 0:00:12]} 13. Bg5 {[%emt 0:02:32]} Ng4 {[%emt 0:06:53]} 14. h3 {[%emt 0:08:29]} Bh6 $2 {[%emt 0:11:03] [#]} (14... f6 $16 {is a better chance.} 15. Bd2 (15. hxg4 fxg5 16. Rb1 h5 $16) 15... Nh6) 15. Qd2 {[%emt 0:01:15] White took control after the opening.  Weighted Error Value: White=0.08 (flawless) /Black=0.97} ({Less strong is} 15. Bxe7 Ne3 16. Qb3 Nxf1 $14) 1-0